fUSD/lending_fUSD_20250221
["ID","MTS","AMOUNT","RATE_DAILY","PERIOD"]
[353968369,1740169851075,-500.0,0.00011204,2]
[353968370,1740169851085,-500.0,0.00011204,2]
[353968372,1740169851094,-1090.65,0.00011204,2]
[353968374,1740169851103,-500.0,0.00011204,2]
[353968376,1740169851116,-891.38,0.00011204,2]
[353968378,1740169851124,-755.81,0.00011204,2]
[353968380,1740169851134,-500.0,0.00011204,2]
[353968382,1740169851143,-500.0,0.00011204,2]
[353968384,1740169851152,-500.0,0.00011204,2]
[353968386,1740169851161,-544.38,0.00011204,2]
[353968388,1740169851169,-1246.41,0.00011204,2]
[353968390,1740169851178,-500.0,0.00011204,2]
[353968392,1740169851187,-500.0,0.00011204,2]
[353968394,1740169851198,-909.34,0.00011204,2]
[353968396,1740169851211,-823.2,0.00011204,2]
[353968398,1740169851221,-500.0,0.00011204,2]
[353968400,1740169851232,-842.3,0.00011204,2]
[353968402,1740169851241,-743.02,0.00011204,2]
[353968404,1740169851250,-501.59712012,0.00011204,2]
[353968406,1740169851259,-500.0,0.00011204,2]
[353968408,1740169851269,-728.63,0.00011204,2]
[353968410,1740169851278,-735.06,0.00011204,2]
[353968413,1740169851287,-500.0,0.00011204,2]
[353968414,1740169851297,-500.0,0.00011204,2]
[353968416,1740169851306,-518.53,0.00011204,2]
[353968418,1740169851315,-651.2,0.00011204,2]
[353968421,1740169851328,-500.0,0.00011204,2]
[353968423,1740169851338,-783.46,0.00011204,2]
[353968425,1740169851347,-990.73,0.00011204,2]
[353968427,1740169851357,-614.39,0.00011204,2]
[353968429,1740169851366,-500.0,0.00011204,2]
[353968431,1740169851375,-500.0,0.00011204,2]
[353968433,1740169851384,-500.0,0.00011204,2]
[353968435,1740169851394,-598.58,0.00011204,2]
[353968437,1740169851403,-500.0,0.00011204,2]
[353968439,1740169851412,-607.23,0.00011204,2]
[353968441,1740169851421,-745.89,0.00011204,2]
[353968443,1740169851430,-816.33,0.00011204,2]
[353968445,1740169851439,-587.27,0.00011204,2]
[353968447,1740169851449,-765.55,0.00011204,2]
[353968449,1740169851458,-2061.12,0.00011204,2]
[353968450,1740169851468,-2537.07,0.00011204,2]
[353968451,1740169851479,-1485.59,0.00011204,2]
[353968452,1740169851489,-500.0,0.00011204,2]
[353968453,1740169851498,-1708.1,0.00011204,2]
[353968454,1740169851507,-559.7,0.00011204,2]
[353968455,1740169851516,-954.18,0.00011204,2]
[353968456,1740169851525,-500.0,0.00011204,2]
[353968457,1740169851534,-500.0,0.00011204,2]
[353968458,1740169851544,-1072.52,0.00011204,2]
[353968459,1740169851553,-1721.36,0.00011204,2]
[353968460,1740169851562,-547.22,0.00011204,2]
[353968461,1740169851573,-500.0,0.00011204,2]
[353968462,1740169851583,-1270.05,0.00011204,2]
[353968463,1740169851594,-826.62,0.00011204,2]
[353968464,1740169851603,-500.0,0.00011204,2]
[353968466,1740169851613,-500.0,0.00011204,2]
[353968468,1740169851623,-889.4,0.00011204,2]
[353968470,1740169851632,-1239.52,0.00011204,2]
[353968472,1740169851641,-500.0,0.00011204,2]
[353968473,1740169851651,-714.45,0.00011204,2]
[353968474,1740169851661,-518.05,0.00011204,2]
[353968475,1740169851674,-1164.8,0.00011204,2]
[353968476,1740169851684,-1351.54,0.00011204,2]
[353968477,1740169851694,-774.42,0.00011204,2]
[353968478,1740169851704,-1025.89,0.00011204,2]
[353968480,1740169851713,-939.07,0.00011204,2]
[353968482,1740169851722,-500.0,0.00011204,2]
[353968484,1740169851733,-500.0,0.00011204,2]
[353968486,1740169851742,-908.74,0.00011204,2]
[353968488,1740169851751,-500.0,0.00011204,2]
[353968490,1740169851760,-378.38598104,0.00011204,2]
[353968492,1740169851770,-955.92,0.00011204,2]
[353968493,1740169851779,-500.0,0.00011204,2]
[353968495,1740169851788,-862.01,0.00011204,2]
[353968497,1740169851798,-1230.96,0.00011204,2]
[353968498,1740169851807,-991.08,0.00011204,2]
[353968499,1740169851816,-500.0,0.00011204,2]
[353968500,1740169851826,-1264.88,0.00011204,2]
[353968501,1740169851835,-1490.95,0.00011204,2]
[353968502,1740169851844,-500.0,0.00011204,2]
[353968503,1740169851853,-644.69,0.00011204,2]
[353968504,1740169851863,-1061.17,0.00011204,2]
[353968505,1740169851872,-553.28,0.00011204,2]
[353968506,1740169851882,-500.0,0.00011204,2]
[353968507,1740169851891,-1134.47,0.00011204,2]
[353968508,1740169851901,-500.0,0.00011205,2]
[353968509,1740169851910,-500.0,0.00011205,2]
[353968511,1740169851919,-500.0,0.00011205,2]
[353968513,1740169851928,-500.0,0.00011205,2]
[353968515,1740169851936,-500.0,0.00011205,2]
[353968517,1740169851946,-500.0,0.00011205,2]
[353968519,1740169851955,-500.0,0.00011205,2]
[353968521,1740169851964,-500.0,0.00011205,2]
[353968523,1740169851973,-500.0,0.00011205,2]
[353968525,1740169851982,-500.0,0.00011205,2]
[353968527,1740169851992,-500.0,0.00011205,2]
[353968528,1740169852002,-500.0,0.00011205,2]
[353968529,1740169852011,-500.0,0.00011205,2]
[353968530,1740169852023,-500.0,0.00011205,2]
[353968531,1740169852032,-500.0,0.00011205,2]
[353968532,1740169852042,-1399.42,0.00011205,2]
[353968533,1740169852051,-500.0,0.00011205,2]
[353968535,1740169852059,-500.0,0.00011205,2]
[353968536,1740169852069,-500.0,0.00011205,2]
[353968539,1740169852079,-500.0,0.00011205,2]
[353968541,1740169852088,-500.0,0.00011205,2]
[353968543,1740169852097,-500.0,0.00011205,2]
[353968545,1740169852106,-500.0,0.00011205,2]
[353968547,1740169852115,-500.0,0.00011205,2]
[353968549,1740169852125,-500.0,0.00011205,2]
[353968551,1740169852134,-500.0,0.00011205,2]
[353968553,1740169852143,-500.0,0.00011205,2]
[353968555,1740169852152,-500.0,0.00011205,2]
[353968556,1740169852161,-500.0,0.00011205,2]
[353968558,1740169852170,-500.0,0.00011205,2]
[353968560,1740169852179,-500.0,0.00011205,2]
[353968562,1740169852188,-500.0,0.00011205,2]
[353968564,1740169852198,-500.0,0.00011205,2]
[353968566,1740169852207,-500.0,0.00011205,2]
[353968568,1740169852216,-500.0,0.00011205,2]
[353968570,1740169852225,-605.41,0.00011205,2]
[353968572,1740169852237,-500.0,0.00011205,2]
[353968574,1740169852247,-500.0,0.00011205,2]
[353968576,1740169852256,-500.0,0.00011205,2]
[353968577,1740169852266,-500.0,0.00011205,2]
[353968579,1740169852276,-475.78773558,0.00011205,2]
[353968581,1740169852286,-500.0,0.00011205,2]
[353968583,1740169852298,-166.4673736,0.00011205,2]
[353968585,1740169852307,-569.74,0.00011205,2]
[353968587,1740169852317,-500.0,0.00011205,2]
[353968588,1740169852327,-500.0,0.00011205,2]
[353968589,1740169852340,-500.0,0.00011205,2]
[353968590,1740169852355,-500.0,0.00011205,2]
[353968591,1740169852365,-500.0,0.00011205,2]
[353968592,1740169852374,-614.61,0.00011205,2]
[353968593,1740169852383,-500.0,0.00011205,2]
[353968594,1740169852392,-500.0,0.00011205,2]
[353968595,1740169852402,-500.0,0.00011205,2]
[353968596,1740169852411,-500.0,0.00011205,2]
[353968597,1740169852420,-500.0,0.00011205,2]
[353968598,1740169852430,-555.23,0.00011205,2]
[353968599,1740169852440,-500.0,0.00011205,2]
[353968600,1740169852449,-670.15,0.00011205,2]
[353968601,1740169852458,-534.13,0.00011205,2]
[353968602,1740169852467,-500.0,0.00011205,2]
[353968603,1740169852476,-500.0,0.00011205,2]
[353968604,1740169852488,-605.6,0.00011205,2]
[353968605,1740169852498,-502.8,0.00011205,2]
[353968606,1740169852507,-632.25,0.00011205,2]
[353968607,1740169852516,-629.07,0.00011205,2]
[353968608,1740169852525,-500.0,0.00011205,2]
[353968609,1740169852535,-500.0,0.00011205,2]
[353968610,1740169852544,-500.0,0.00011205,2]
[353968611,1740169852554,-500.0,0.00011205,2]
[353968612,1740169852563,-1114.7,0.00011205,2]
[353968613,1740169852576,-1625.85,0.00011205,2]
[353968614,1740169852586,-674.52,0.00011205,2]
[353968615,1740169852595,-881.49,0.00011205,2]
[353968616,1740169852607,-820.68,0.00011205,2]
[353968617,1740169852618,-524.17,0.00011205,2]
[353968618,1740169852627,-550.34,0.00011205,2]
[353968619,1740169852637,-500.0,0.00011205,2]
[353968620,1740169852646,-531.58,0.00011205,2]
[353968621,1740169852656,-1165.1,0.00011205,2]
[353968622,1740169852667,-500.0,0.00011205,2]
[353968623,1740169852676,-500.0,0.00011205,2]
[353968624,1740169852686,-500.0,0.00011205,2]
[353968625,1740169852696,-653.83,0.00011205,2]
[353968626,1740169852706,-500.0,0.00011205,2]
[353968627,1740169852723,-500.0,0.00011205,2]
[353968628,1740169852738,-709.13,0.00011205,2]
[353968629,1740169852748,-670.82,0.00011205,2]
[353968630,1740169852758,-643.9,0.00011205,2]
[353968631,1740169852768,-500.0,0.00011205,2]
[353968632,1740169852778,-500.0,0.00011205,2]
[353968633,1740169852788,-807.94,0.00011205,2]
[353968634,1740169852797,-514.05,0.00011205,2]
[353968635,1740169852807,-940.11,0.00011205,2]
[353968636,1740169852816,-500.0,0.00011205,2]
[353968637,1740169852825,-523.23,0.00011205,2]
[353968638,1740169852835,-704.22,0.00011205,2]
[353968639,1740169852844,-500.0,0.00011205,2]
[353968640,1740169852854,-536.54,0.00011205,2]
[353968641,1740169852863,-500.0,0.00011205,2]
[353968642,1740169852873,-500.0,0.00011205,2]
[353968643,1740169852882,-951.59,0.00011205,2]
[353968644,1740169852892,-1138.97,0.00011205,2]
[353968645,1740169852901,-500.0,0.00011205,2]
[353968646,1740169852910,-500.0,0.00011205,2]
[353968647,1740169852920,-521.17,0.00011205,2]
[353968648,1740169852929,-775.05,0.00011205,2]
[353968649,1740169852939,-500.0,0.00011205,2]
[353968650,1740169852948,-815.93,0.00011205,2]
[353968651,1740169852957,-500.0,0.00011205,2]
[353968652,1740169852966,-1182.87,0.00011205,2]
[353968653,1740169852975,-540.94,0.00011205,2]
[353968654,1740169852986,-529.36,0.00011205,2]
[353968655,1740169852995,-500.0,0.00011205,2]
[353968656,1740169853006,-500.0,0.00011205,2]
[353968657,1740169853015,-500.0,0.00011205,2]
[353968658,1740169853025,-500.0,0.00011205,2]
[353968659,1740169853034,-500.0,0.00011205,2]
[353968660,1740169853043,-635.41,0.00011205,2]
[353968661,1740169853053,-500.0,0.00011205,2]
[353968662,1740169853062,-947.3,0.00011205,2]
[353968663,1740169853071,-529.17,0.00011205,2]
[353968664,1740169853080,-531.15,0.00011205,2]
[353968665,1740169853089,-500.0,0.00011205,2]
[353968666,1740169853099,-549.72,0.00011205,2]
[353968667,1740169853110,-500.0,0.00011205,2]
[353968668,1740169853120,-500.0,0.00011205,2]
[353968669,1740169853130,-500.0,0.00011205,2]
[353968670,1740169853140,-829.08,0.00011205,2]
[353968671,1740169853151,-609.13,0.00011205,2]
[353968672,1740169853161,-500.0,0.00011205,2]
[353968673,1740169853171,-544.45,0.00011205,2]
[353968674,1740169853180,-720.74,0.00011205,2]
[353968675,1740169853191,-503.88,0.00011205,2]
[353968676,1740169853201,-790.95,0.00011205,2]
[353968677,1740169853211,-500.0,0.00011205,2]
[353968678,1740169853220,-509.46,0.00011205,2]
[353968679,1740169853231,-794.91,0.00011205,2]
[353968680,1740169853241,-500.0,0.00011205,2]
[353968681,1740169853250,-500.0,0.00011205,2]
[353968682,1740169853259,-573.64,0.00011205,2]
[353968683,1740169853270,-1150.44,0.00011205,2]
[353968684,1740169853279,-500.0,0.00011205,2]
[353968685,1740169853288,-500.0,0.00011205,2]
[353968686,1740169853298,-500.0,0.00011205,2]
[353968687,1740169853307,-500.0,0.00011205,2]
[353968688,1740169853317,-500.0,0.00011205,2]
[353968689,1740169853326,-500.0,0.00011205,2]
[353968690,1740169853336,-500.0,0.00011205,2]
[353968691,1740169853345,-664.74,0.00011205,2]
[353968692,1740169853354,-272.39876081,0.00011205,2]
[353968693,1740169853363,-500.0,0.00011205,2]
[353968694,1740169853372,-679.55,0.00011205,2]
[353968695,1740169853381,-500.0,0.00011205,2]
[353968696,1740169853394,-577.45,0.00011205,2]
[353968697,1740169853403,-823.36,0.00011205,2]
[353968698,1740169853413,-500.0,0.00011205,2]
[353968699,1740169853422,-500.0,0.00011205,2]
[353968700,1740169853431,-838.58,0.00011205,2]
[353968701,1740169853441,-500.0,0.00011205,2]
[353968702,1740169853451,-549.33,0.00011205,2]
[353968703,1740169853461,-1020.42,0.00011205,2]
[353968704,1740169853471,-500.0,0.00011205,2]
[353968705,1740169853482,-500.0,0.00011205,2]
[353968706,1740169853491,-904.63,0.00011205,2]
[353968707,1740169853500,-1789.18,0.00011205,2]
[353968708,1740169853509,-500.0,0.00011205,2]
[353968709,1740169853519,-626.53,0.00011205,2]
[353968710,1740169853528,-635.22,0.00011205,2]
[353968711,1740169853537,-569.74,0.00011205,2]
[353968712,1740169853547,-726.17,0.00011205,2]
[353968713,1740169853556,-500.0,0.00011205,2]
[353968714,1740169853565,-842.71,0.00011205,2]
[353968715,1740169853576,-500.0,0.00011205,2]
[353968716,1740169853587,-1074.49,0.00011205,2]
[353968717,1740169853597,-795.36,0.00011205,2]
[353968718,1740169853610,-1056.28,0.00011205,2]
[353968719,1740169853625,-1258.14,0.00011205,2]
[353968720,1740169853634,-1000.0,0.00011205,2]
[353968721,1740169853644,-512.15,0.00011205,2]
[353968722,1740169853654,-1055.08,0.00011205,2]
[353968723,1740169853666,-635.47,0.00011205,2]
[353968724,1740169853676,-500.0,0.00011205,2]
[353968725,1740169853687,-500.0,0.00011205,2]
[353968726,1740169853697,-1413.88,0.00011205,2]
[353968727,1740169853707,-708.19,0.00011205,2]
[353968728,1740169853717,-754.05,0.00011205,2]
[353968729,1740169853727,-607.35,0.00011205,2]
[353968730,1740169853741,-635.75,0.00011205,2]
[353968731,1740169853751,-407.46,0.00011205,2]
[353968732,1740169853761,-1186.62,0.00011205,2]
[353968733,1740169853771,-1053.24,0.00011205,2]
[353968734,1740169853781,-500.0,0.00011205,2]
[353968735,1740169853791,-884.48,0.00011205,2]
[353968736,1740169853801,-500.0,0.00011205,2]
[353968737,1740169853811,-500.0,0.00011205,2]
[353968738,1740169853821,-734.33,0.00011205,2]
[353968739,1740169853831,-552.54,0.00011205,2]
[353968740,1740169853840,-500.0,0.00011205,2]
[353968741,1740169854027,-539.64,0.00011205,2]
[353968742,1740169854041,-500.0,0.00011205,2]
[353968743,1740169854051,-760.38,0.00011205,2]
[353968744,1740169854061,-1272.99,0.00011205,2]
[353968745,1740169854071,-521.11,0.00011205,2]
[353968746,1740169854081,-593.17,0.00011205,2]
[353968747,1740169854091,-790.63,0.00011205,2]
[353968748,1740169854100,-500.0,0.00011205,2]
[353968749,1740169854110,-1981.32,0.00011205,2]
[353968750,1740169854120,-500.0,0.00011205,2]
[353968751,1740169854130,-608.41,0.00011205,2]
[353968752,1740169854140,-500.0,0.00011205,2]
[353968753,1740169854150,-787.42,0.00011205,2]
[353968754,1740169854160,-500.0,0.00011205,2]
[353968755,1740169854171,-500.0,0.00011205,2]
[353968756,1740169854180,-500.0,0.00011205,2]
[353968757,1740169854190,-718.23,0.00011205,2]
[353968758,1740169854200,-720.63,0.00011205,2]
[353968759,1740169854210,-500.0,0.00011205,2]
[353968760,1740169854220,-679.3,0.00011205,2]
[353968761,1740169854231,-500.0,0.00011205,2]
[353968762,1740169854241,-751.34,0.00011205,2]
[353968763,1740169854251,-584.17,0.00011205,2]
[353968764,1740169854261,-500.0,0.00011205,2]
[353968765,1740169854271,-911.34,0.00011205,2]
[353968766,1740169854281,-1266.62,0.00011205,2]
[353968767,1740169854290,-500.0,0.00011205,2]
[353968768,1740169854299,-1324.24,0.00011205,2]
[353968769,1740169854309,-500.0,0.00011205,2]
[353968770,1740169854319,-656.96,0.00011205,2]
[353968771,1740169854328,-500.0,0.00011205,2]
[353968772,1740169854337,-500.0,0.00011205,2]
[353968773,1740169854347,-500.0,0.00011205,2]
[353968774,1740169854357,-533.07,0.00011205,2]
[353968775,1740169854367,-1152.41,0.00011205,2]
[353968776,1740169854376,-1053.28,0.00011205,2]
[353968777,1740169854386,-953.95,0.00011205,2]
[353968778,1740169854396,-226.92841165,0.00011205,2]
[353968779,1740169854405,-500.0,0.00011205,2]
[353968780,1740169854415,-626.53,0.00011205,2]
[353968781,1740169854426,-500.0,0.00011205,2]
[353968782,1740169854435,-679.65,0.00011205,2]
[353968783,1740169854444,-837.63,0.00011205,2]
[353968784,1740169854454,-1382.11,0.00011205,2]
[353968785,1740169854463,-500.0,0.00011205,2]
[353968786,1740169854473,-500.0,0.00011205,2]
[353968787,1740169854485,-926.8,0.00011205,2]
[353968788,1740169854495,-500.0,0.00011205,2]
[353968789,1740169854505,-603.52,0.00011205,2]
[353968790,1740169854515,-328.33523918,0.00011205,2]
[353968791,1740169854524,-500.0,0.00011205,2]
[353968792,1740169854534,-500.0,0.00011205,2]
[353968793,1740169854544,-500.0,0.00011205,2]
[353968794,1740169854554,-500.0,0.00011205,2]
[353968795,1740169854563,-500.0,0.00011205,2]
[353968796,1740169854574,-500.0,0.00011205,2]
[353968797,1740169854584,-200.0,0.00011234,2]
[353968798,1740169854594,-799.16,0.00011266,2]
[353968799,1740169854603,-1781.2,0.00011266,2]
[353968800,1740169854613,-251.862616,0.00011266,2]
[353968801,1740169854623,-1550.07,0.00011266,2]
[353968802,1740169854634,-316.422546,0.00011266,2]
[353968803,1740169854644,-1412.73,0.00011266,2]
[353968804,1740169854655,-500.0,0.00011266,2]
[353968805,1740169854665,-1104.82,0.00011266,2]
[353968806,1740169854674,-7042.19,0.00011266,2]
[353968807,1740169854683,-1046.04,0.00011266,2]
[353968808,1740169854693,-1400.31,0.00011266,2]
[353968809,1740169854703,-1462.39,0.00011266,2]
[353968810,1740169854713,-895.64,0.00011266,2]
[353968811,1740169854726,-655.64,0.00011266,2]
[353968812,1740169854736,-1400.9,0.00011266,2]
[353968813,1740169854747,-1386.49,0.00011266,2]
[353968814,1740169854757,-1243.46,0.00011266,2]
[353968815,1740169854767,-1711.53,0.00011266,2]
[353968816,1740169854777,-2809.08,0.00011266,2]
[353968817,1740169854787,-951.19,0.00011266,2]
[353968818,1740169854797,-1340.02,0.00011266,2]
[353968819,1740169854807,-1596.09,0.00011266,2]
[353968820,1740169854817,-822.98,0.00011266,2]
[353968821,1740169854827,-1332.21,0.00011266,2]
[353968822,1740169854837,-962.24,0.00011266,2]
[353968823,1740169854846,-960.7,0.00011266,2]
[353968824,1740169854856,-1302.93,0.00011266,2]
[353968825,1740169854866,-2867.87,0.00011266,2]
[353968826,1740169854875,-1895.95,0.00011266,2]
[353968827,1740169854885,-270.0191061,0.00011269,2]
[353968828,1740169854894,-529.92840529,0.00011271,2]
[353968829,1740169854904,-186.84,0.00011275,2]
[353968830,1740169854913,-500.0,0.00011286,2]
[353968831,1740169854923,-770.17,0.00011286,2]
[353968832,1740169854932,-500.0,0.00011286,2]
[353968833,1740169854942,-752.64,0.00011286,2]
[353968834,1740169854951,-741.89,0.00011286,2]
[353968835,1740169854961,-500.0,0.00011286,2]
[353968836,1740169854971,-662.68,0.00011286,2]
[353968837,1740169854981,-500.0,0.00011286,2]
[353968838,1740169854991,-500.0,0.00011286,2]
[353968839,1740169855002,-500.0,0.00011286,2]
[353968840,1740169855012,-500.0,0.00011286,2]
[353968841,1740169855022,-500.0,0.00011286,2]
[353968842,1740169855031,-611.03,0.00011286,2]
[353968843,1740169855040,-500.0,0.00011286,2]
[353968844,1740169855050,-500.0,0.00011286,2]
[353968845,1740169855059,-1090.65,0.00011286,2]
[353968846,1740169855069,-500.0,0.00011286,2]
[353968847,1740169855079,-891.38,0.00011286,2]
[353968848,1740169855089,-755.81,0.00011286,2]
[353968849,1740169855099,-500.0,0.00011286,2]
[353968850,1740169855108,-500.0,0.00011286,2]
[353968851,1740169855118,-500.0,0.00011286,2]
[353968852,1740169855127,-544.38,0.00011286,2]
[353968853,1740169855136,-1246.41,0.00011286,2]
[353968854,1740169855146,-500.0,0.00011286,2]
[353968855,1740169855155,-500.0,0.00011286,2]
[353968856,1740169855165,-909.34,0.00011286,2]
[353968857,1740169855174,-823.2,0.00011286,2]
[353968858,1740169855184,-500.0,0.00011286,2]
[353968859,1740169855193,-842.3,0.00011286,2]
[353968860,1740169855202,-743.02,0.00011286,2]
[353968861,1740169855212,-500.0,0.00011286,2]
[353968862,1740169855221,-728.63,0.00011286,2]
[353968863,1740169855231,-735.06,0.00011286,2]
[353968864,1740169855240,-500.0,0.00011286,2]
[353968865,1740169855250,-500.0,0.00011286,2]
[353968866,1740169855260,-518.53,0.00011286,2]
[353968867,1740169855269,-651.2,0.00011286,2]
[353968868,1740169855278,-500.0,0.00011286,2]
[353968869,1740169855288,-783.46,0.00011286,2]
[353968870,1740169855297,-990.73,0.00011286,2]
[353968871,1740169855307,-614.39,0.00011286,2]
[353968872,1740169855317,-500.0,0.00011286,2]
[353968873,1740169855327,-500.0,0.00011286,2]
[353968874,1740169855337,-500.0,0.00011286,2]
[353968875,1740169855346,-598.58,0.00011286,2]
[353968876,1740169855356,-500.0,0.00011286,2]
[353968877,1740169855365,-607.23,0.00011286,2]
[353968878,1740169855374,-745.89,0.00011286,2]
[353968879,1740169855384,-816.33,0.00011286,2]
[353968880,1740169855394,-587.27,0.00011286,2]
[353968881,1740169855403,-765.55,0.00011286,2]
[353968882,1740169855413,-2061.12,0.00011286,2]
[353968883,1740169855423,-2537.07,0.00011286,2]
[353968884,1740169855433,-1485.59,0.00011286,2]
[353968885,1740169855443,-500.0,0.00011286,2]
[353968886,1740169855453,-1708.1,0.00011286,2]
[353968887,1740169855463,-559.7,0.00011286,2]
[353968888,1740169855473,-954.18,0.00011286,2]
[353968889,1740169855485,-500.0,0.00011286,2]
[353968890,1740169855495,-500.0,0.00011286,2]
[353968891,1740169855505,-1072.52,0.00011286,2]
[353968892,1740169855514,-1721.36,0.00011286,2]
[353968893,1740169855523,-547.22,0.00011286,2]
[353968894,1740169855533,-500.0,0.00011286,2]
[353968895,1740169855543,-1270.05,0.00011286,2]
[353968896,1740169855553,-826.62,0.00011286,2]
[353968897,1740169855562,-500.0,0.00011286,2]
[353968898,1740169855571,-500.0,0.00011286,2]
[353968899,1740169855580,-889.4,0.00011286,2]
[353968900,1740169855593,-1239.52,0.00011286,2]
[353968901,1740169855603,-500.0,0.00011286,2]
[353968902,1740169855612,-714.45,0.00011286,2]
[353968903,1740169855622,-518.05,0.00011286,2]
[353968904,1740169855631,-1164.8,0.00011286,2]
[353968905,1740169855640,-1351.54,0.00011286,2]
[353968906,1740169855650,-774.42,0.00011286,2]
[353968907,1740169855661,-1025.89,0.00011286,2]
[353968908,1740169855671,-939.07,0.00011286,2]
[353968909,1740169855681,-500.0,0.00011286,2]
[353968910,1740169855690,-500.0,0.00011286,2]
[353968911,1740169855699,-908.74,0.00011286,2]
[353968912,1740169855709,-500.0,0.00011286,2]
[353968913,1740169855720,-955.92,0.00011286,2]
[353968914,1740169855729,-500.0,0.00011286,2]
[353968915,1740169855740,-862.01,0.00011286,2]
[353968916,1740169855750,-1230.96,0.00011286,2]
[353968917,1740169855759,-991.08,0.00011286,2]
[353968918,1740169855769,-500.0,0.00011286,2]
[353968919,1740169855779,-1264.88,0.00011286,2]
[353968920,1740169855787,-1490.95,0.00011286,2]
[353968921,1740169855796,-500.0,0.00011286,2]
[353968922,1740169855806,-644.69,0.00011286,2]
[353968923,1740169855816,-1061.17,0.00011286,2]
[353968924,1740169855825,-553.28,0.00011286,2]
[353968925,1740169855834,-500.0,0.00011286,2]
[353968926,1740169855844,-1134.47,0.00011286,2]
[353968927,1740169855853,-500.0,0.00011287,2]
[353968928,1740169855862,-500.0,0.00011287,2]
[353968929,1740169855871,-500.0,0.00011287,2]
[353968930,1740169855881,-162.05259757,0.00011287,2]
[353968931,1740169855890,-500.0,0.00011287,2]
[353968932,1740169855899,-500.0,0.00011287,2]
[353968933,1740169855908,-500.0,0.00011287,2]
[353968934,1740169855918,-500.0,0.00011287,2]
[353968935,1740169855927,-500.0,0.00011287,2]
[353968936,1740169855936,-500.0,0.00011287,2]
[353968937,1740169855944,-500.0,0.00011287,2]
[353968938,1740169855954,-500.0,0.00011287,2]
[353968939,1740169855963,-500.0,0.00011287,2]
[353968940,1740169855972,-500.0,0.00011287,2]
[353968941,1740169855982,-500.0,0.00011287,2]
[353968942,1740169855991,-1399.42,0.00011287,2]
[353968943,1740169856001,-500.0,0.00011287,2]
[353968944,1740169856011,-500.0,0.00011287,2]
[353968945,1740169856020,-500.0,0.00011287,2]
[353968946,1740169856030,-500.0,0.00011287,2]
[353968947,1740169856039,-500.0,0.00011287,2]
[353968948,1740169856048,-500.0,0.00011287,2]
[353968949,1740169856057,-500.0,0.00011287,2]
[353968950,1740169856066,-500.0,0.00011287,2]
[353968951,1740169856075,-500.0,0.00011287,2]
[353968952,1740169856084,-500.0,0.00011287,2]
[353968953,1740169856093,-500.0,0.00011287,2]
[353968954,1740169856102,-500.0,0.00011287,2]
[353968955,1740169856111,-500.0,0.00011287,2]
[353968956,1740169856373,-500.0,0.00011287,2]